Workbook

Sheet Numerická analýza průhybu

Sheet Součinitel dotvarování (hidden)
C3: Výpočet součinitele dotvarování dle ČSN EN 1992-1-1
C5: 1. Vstupní hodnoty:
C7: Náhradní tloušťka: | D7: h0 = | E7: 0.1607 | F7: mm
C8: Třída cementu: | E8: N
C9: Čas vnesení zatížení: | D9: t0 = | E9: 28 | F9: dní
C10: Po vybetonování se beton ošetřuje po dobu (0,tsh): | D10: tsh = | E10: 7 | F10: dní
C11: Konec zatěžování konstrukce: | D11: t = | E11: ꚙ | F11: dní
C12: Teplota okolního prostředí: | D12: T = | E12: 20 | F12: °C
C13: Relativní vlhkost okolního prostředí: | D13: RH = | E13: 40 | F13: %
C15: 2. Součinitel dotvarování pro zatížení:
C17: Součinitel, vystihující vliv relativní vlhkosti na základní
C18: součinitel dotvarování: | D18: ϕRH = | E18: 2.103569671 | F18: -
C19: Součinitel, vystihující vliv pevnosti betonu
C20: na základní součinitel dotvarování: | D20: β(fcm) = | E20: 3.174901573 | F20: -
C21: Součinitel, vystihující vliv stáří betonu v okamžiku
C22: vnesení zatížení na základní součinitel dotvarování: | D22: β(t0) = | E22: 0.4884495454 | F22: -
C23: Základní součinitel dotvarování :
C24: ϕ0 = ϕRH . β(fcm) . β(t0) | D24: ϕ0 = | E24: 3.262172154 | F24: -
C25: Součinitel časového průběhu dotvarování po zatížení:
C26: (pro t = ꚙ dní) | D26: βc(t,t0) = | E26: 1 | F26: -
C27: Součinitel dotvarování:
C28: ϕc = ϕ0 . βc(t,t0) | D28: ϕc = | E28: 3.262172154 | F28: -
C30: 3. Součinitel dotvarování pro smršťování:
C32: Součinitel, vystihující vliv relativní vlhkosti na základní
C33: součinitel dotvarování: | D33: ϕRH = | E33: 2.103569671 | F33: -
C34: Součinitel, vystihující vliv pevnosti betonu
C35: na základní součinitel dotvarování: | D35: β(fcm) = | E35: 3.174901573 | F35: -
C36: Součinitel, vystihující vliv stáří betonu v okamžiku
C37: vnesení zatížení na základní součinitel dotvarování: | D37: β(t0) = | E37: 0.6346091077 | F37: -
C38: Základní součinitel dotvarování :
C39: ϕ0 = ϕRH . β(fcm) . β(t0) | D39: ϕ0 = | E39: 4.238317303 | F39: -
C40: Součinitel časového průběhu dotvarování po zatížení:
C41: (pro t = ꚙ dní) | D41: βc(t,t0) = | E41: 1 | F41: -
C42: Součinitel dotvarování:
C43: ϕc,sh = ϕ0 . βc(t,t0) | D43: ϕc,sh = | E43: 4.238317303 | F43: -

Sheet Protokol (hidden)
A2: str.1 | C2: Výpočet přetvoření od dotvarování a smršťování
C8: 1. Vstupní hodnoty:
C10: Třída betonu: | E10: C20/25
C11: Modul pružnosti betonu: | D11: Ec = | E11: 30 | F11: GPa
C12: Třída výztuže: | E12: B 500B
C13: Modul pružnosti výztuže: | D13: Es = | E13: 200 | F13: GPa
C14: Třída cementu: | E14: N
C16: Délka nosníku: | D16: l = | E16: 6 | F16: m
C17: Výška průřezu: | D17: h = | E17: 0,45 | F17: m
C18: Šířka průřezu: | D18: b = | E18: 0,25 | F18: m
C20: Stálé charakteristické spojité zatížení: | D20: gk = | E20: 5 | F20: kN/m
C21: Užitné charakteristické spojité zatížení: | D21: qk = | E21: 10 | F21: kN/m
C23: Průměr hlavní ohybové výztuže: | D23: Ø = | E23: 16 | F23: mm
C24: Počet prutů ohybové výztuže: | D24: počet = | E24: 5 | F24: ks
C25: Průměr třmínků: | D25: Øtř = | E25: 0 | F25: mm
C26: Krytí: | D26: c = | E26: 30 | F26: mm
C28: Teplota okolního prostředí: | D28: T = | E28: 20 | F28: °C
C29: Relativní vlhkost okolního prostředí: | D29: RH = | E29: 40 | F29: %
C30: Čas vnesení zatížení: | D30: t0 = | E30: 28 | F30: dní
C31: Po vybetonování se beton ošetřuje po dobu (0,tsh): | D31: tsh = | E31: 7 | F31: dní
C32: Kategorie konstrukce dle zatížení: | D32: Kategorie D: obchodní plochy
C33: Hodnoty součinitelů ψ: | D33: ψ1 = | E33: 0.7 | F33: -
D34: ψ2 = | E34: 0.6 | F34: -
C36: 2. Výstupní hodnoty:
C38: 2.1. Materiálové a geometrické vlastnosti:
C40: Charakteristická pevnost betonu v tlaku: | D40: fck = | E40: 20 | F40: MPa
C41: Střední hodnota pevnosti betonu v tlaku: | D41: fcm = | E41: 28 | F41: MPa
C42: Střední hodnota pevnosti betonu v tahu: | D42: fctm = | E42: 2.2 | F42: MPa
C43: Plocha betonového průřezu: | D43: Ac = | E43: 0.1125 | F43: m2
C44: Mez kluzu výztuže: | D44: fyk = | E44: 500 | F44: MPa
C45: Plocha hlavní ohybové výztuže: | D45: As = | E45: 1005.31 | F45: mm2
C46: Vzdálenost spodní výztuže od dolních vláken: | D46: d1 = | E46: 38 | F46: mm
C47: Vzdálenost spodní výztuže od horních vláken: | D47: d = | E47: 0.412 | F47: m
A49: str.2 | C49: 2.2. Zatížení:
C51: Kvazistálá kombinace zatížení: | D51: fqp = | E51: 11 | F51: kN/m
C52: Ohybový moment od kvazistálé kombinace: | D52: ME,qp = | E52: 49.5 | F52: kN.m
C53: Častá kombinace zatížení: | D53: ffr = | E53: 12 | F53: kN/m
C54: Ohybový moment od časté kombinace: | D54: ME,fr = | E54: 54 | F54: kN.m
C55: Charakteristická kombinace zatížení: | D55: fk = | E55: 15 | F55: kN/m
C56: Ohybový moment od charakteristické kombinace: | D56: ME,k = | E56: 67.5 | F56: kN.m
C58: 3. Výpočet přetvoření:
C60: 3.1. Kritéria průhybu:
C62: Limitní hodnota průhybu pro dlouhodobý účinek: | D62: wlim,lt,qp = | E62: 24 | F62: mm
C64: 3.2. Výpočet průhybu:
C66: Zatížení začíná působit v čase: | D66: t0 = | E66: 28 | F66: dní
C67: Po vybetonování se beton ošetřuje po dobu (0,tsh): | D67: tsh = | E67: 7 | F67: dní
C68: Náhradní tloušťka: | D68: h0 = | E68: 0.1607 | F68: mm
C70: 3.2.1. Průhyb od kvazistálého zatížení:
C72: Součinitel dotvarování pro čas vnesení zatížení: | D72: ϕc = | E72: 3.26 | F72: -
C73: Efektivní modul pružnosti pro dlouhodobě působící zatížení: | D73: Ec,ef = | E73: 7.04 | F73: GPa
C74: Pracovní součinitel (poměr Es/Ec,ef) | D74: αe,ef = | E74: 28.41 | F74: -
C76: 3.2.1.A. Geometrické charakteristiky průřezu bez trhliny:
C78: Plocha ideálního průřezu: | D78: AI,ef = | E78: 0.14107 | F78: m2
C79: Vzdálenost těžiště ideálního průřezu od horního okraje: | D79: aI,ef = | E79: 0.26287 | F79: m
C80: Moment setrvačnosti ideálního průřezu k jeho těžišti: | D80: II,ef = | E80: 0.002695 | F80: m4
C81: Ohybová tuhost: | D81: Ec,ef . II,ef = | E81: 18.97 | F81: MN.m2
C82: Ohybová poddajnost: | D82: CI,ef = | E82: 0.05272 | F82: MN-1.m-2
C83: Ohybový moment při vzniku trhlin: | D83: Mcr = | E83: 31.68 | F83: kN.m
C84: Ohybový moment od kvazistálé kombinace: | D84: ME,qp = | E84: 49.5 | F84: kN.m
C86: Posouzení vzniku trhlin od zatížení: | D86: M [kN.m]: | F86: Mcr[kN.m]:
C87: Trhliny vzniknou při kvazistálé kombinaci zatížení. | D87: 49.5 | E87: > | F87: 31.68
C88: Trhliny vzniknou při časté kombinaci zatížení. | D88: 54 | E88: > | F88: 31.68
C89: Trhliny vzniknou při charakteristické kombinaci zatížení. | D89: 67.5 | E89: > | F89: 31.68
A94: str.3 | C94: 3.2.1.B. Geometrické charakteristiky průřezu s trhlinou:
C96: Vzdálenost neutrální osy od tlačeného okraje: | D96: xcr,ef = | E96: 0.213 | F96: m
C97: Moment setrvačnosti průřezu s trhlinou k jeho těžišti: | D97: III,ef = | E97: 0.001937 | F97: m4
C98: Ohybová tuhost: | D98: Ec,ef . III,ef = | E98: 13.63 | F98: MN.m2
C99: Ohybová poddajnost: | D99: CII,ef = | E99: 0.07337 | F99: MN-1.m-2
C100: Hodnota udávající míru spolupůsobení betonu mezi trhlinami: | D100: ζ qp,ef = | E100: 0.7951 | F100: -
C101: Výsledná křivost od kvazistálého zatížení: | D101: (1/r)g,lt = | E101: 0.003422 | F101: m-1
C102: Průhyb od kvazisálého zatížení: | D102: wg,lt = | E102: 12.83 | F102: mm
C104: 3.2.2. Průhyb od smršťování:
C106: Součinitel dotvarování pro smršťování: | D106: ϕc,sh = | E106: 4.24 | F106: -
C107: Autogenní smršťování: | D107: εca = | E107: 2.5e-05 | F107: -
C108: Poměrné dotvarování vysycháním: | D108: εcd = | E108: 0.000582 | F108: -
C109: Celkové poměrné smršťování | D109: εcs = | E109: 0.000607 | F109: -
C110: Efektivní modul pružnosti pro dlouhodobě působící zatížení: | D110: Ec,ef,sh = | E110: 5.73 | F110: GPa
C111: Pracovní součinitel (poměr Es/Ec,ef,sh) | D111: αe,ef,sh = | E111: 34.92 | F111: -
C113: 3.2.2.A. Geometrické charakteristiky průřezu bez trhliny:
C115: Plocha ideálního průřezu: | D115: AI,ef,sh = | E115: 0.147608 | F115: m2
C116: Vzdálenost těžiště ideálního průřezu od horního okraje: | D116: aI,ef,sh = | E116: 0.269477 | F116: m
C117: Moment setrvačnosti ideálního průřezu k jeho těžišti: | D117: II,ef,sh = | E117: 0.002834 | F117: m4
C118: Statický moment průřezové plochy k těžišti výztuže: | D118: SI,ef,sh = | E118: 0.000143 | F118: m3
C120: 3.2.2.B. Geometrické charakteristiky průřezu s trhlinou:
C122: Vzdálenost neutrální osy od tlačeného okraje: | D122: xcr,ef,sh = | E122: 0.2276 | F122: m
C123: Moment setrvačnosti průřezu s trhlinou k jeho těžišti: | D123: III,ef,sh = | E123: 0.002176 | F123: m4
C124: Statický moment průřezové plochy k těžišti výztuže: | D124: SII,ef,sh = | E124: 0.000185 | F124: m3
C125: Výsledná křivost od smršťování: | D125: (1/r)cs = | E125: 0.001654 | F125: m-1
C126: Průhyb od smršťování: | D126: wcs = | E126: 7.44 | F126: mm
C128: 4. Výsledky:
C130: Průhyb od kvazisálého zatížení: | D130: wg,lt = | E130: 12.83 | F130: mm
C131: Průhyb od smršťování: | D131: wcs = | E131: 7.44 | F131: mm
C132: Celkový průhyb (wlt = wg,lt + wcs): | D132: wlt = | E132: 20.3 | F132: mm
C133: Limitní hodnota průhybu pro dlouhodobý účinek: | D133: wlim,lt,qp = | E133: 24 | F133: mm
A138: str.4 | C138: 5. Posouzení: | D138: wlt [mm] | E138: < | F138: wlim,lt [mm]
D139: 20.3 | E139: < | F139: 24
D141: PRŮHYB VYHOVUJE

Sheet Protokol (průřez bez trhlin) (hidden)
A2: str.1 | C2: Výpočet přetvoření od dotvarování a smršťování
C8: 1. Vstupní hodnoty:
C10: Třída betonu: | E10: C20/25
C11: Modul pružnosti betonu: | D11: Ec = | E11: 30 | F11: GPa
C12: Třída výztuže: | E12: B 500B
C13: Modul pružnosti výztuže: | D13: Es = | E13: 200 | F13: GPa
C14: Třída cementu: | E14: N
C16: Délka nosníku: | D16: l = | E16: 6 | F16: m
C17: Výška průřezu: | D17: h = | E17: 0,45 | F17: m
C18: Šířka průřezu: | D18: b = | E18: 0,25 | F18: m
C20: Stálé charakteristické spojité zatížení: | D20: gk = | E20: 5 | F20: kN/m
C21: Užitné charakteristické spojité zatížení: | D21: qk = | E21: 10 | F21: kN/m
C23: Průměr hlavní ohybové výztuže: | D23: Ø = | E23: 16 | F23: mm
C24: Počet prutů ohybové výztuže: | D24: počet = | E24: 5 | F24: ks
C25: Průměr třmínků: | D25: Øtř = | E25: 0 | F25: mm
C26: Krytí: | D26: c = | E26: 30 | F26: mm
C28: Teplota okolního prostředí: | D28: T = | F28: °C
C29: Relativní vlhkost okolního prostředí: | D29: RH = | E29: 40 | F29: %
C30: Čas vnesení zatížení: | D30: t0 = | E30: 28 | F30: dní
C31: Po vybetonování se beton ošetřuje po dobu (0,tsh): | D31: tsh = | E31: 7 | F31: dní
C32: Kategorie konstrukce dle zatížení:
C33: Hodnoty součinitelů ψ: | D33: ψ1 = | E33: 0.7 | F33: -
D34: ψ2 = | E34: 0.6 | F34: -
C36: 2. Výstupní hodnoty:
C38: 2.1. Materiálové a geometrické vlastnosti:
C40: Charakteristická pevnost betonu v tlaku: | D40: fck = | E40: 20 | F40: MPa
C41: Střední hodnota pevnosti betonu v tlaku: | D41: fcm = | E41: 28 | F41: MPa
C42: Střední hodnota pevnosti betonu v tahu: | D42: fctm = | E42: 2.2 | F42: MPa
C43: Plocha betonového průřezu: | D43: Ac = | E43: 0.1125 | F43: m2
C44: Mez kluzu výztuže: | D44: fyk = | E44: 500 | F44: MPa
C45: Plocha hlavní ohybové výztuže: | D45: As = | E45: 1005.31 | F45: mm2
C46: Vzdálenost spodní výztuže od dolních vláken: | D46: d1 = | E46: 38 | F46: mm
C47: Vzdálenost spodní výztuže od horních vláken: | D47: d = | E47: 0.412 | F47: m
A49: str.2 | C49: 2.2. Zatížení:
C51: Kvazistálá kombinace zatížení: | D51: fqp = | E51: 11 | F51: kN/m
C52: Ohybový moment od kvazistálé kombinace: | D52: ME,qp = | E52: 49.5 | F52: kN.m
C53: Častá kombinace zatížení: | D53: ffr = | E53: 12 | F53: kN/m
C54: Ohybový moment od časté kombinace: | D54: ME,fr = | E54: 54 | F54: kN.m
C55: Charakteristická kombinace zatížení: | D55: fk = | E55: 15 | F55: kN/m
C56: Ohybový moment od charakteristické kombinace: | D56: ME,k = | E56: 67.5 | F56: kN.m
C58: 3. Výpočet přetvoření:
C60: 3.1. Kritéria průhybu:
C62: Limitní hodnota průhybu pro dlouhodobý účinek: | D62: wlim,lt,qp = | E62: 24 | F62: mm
C64: 3.2. Výpočet průhybu:
C66: Zatížení začíná působit v čase: | D66: t0 = | E66: 28 | F66: dní
C67: Po vybetonování se beton ošetřuje po dobu (0,tsh): | D67: tsh = | E67: 7 | F67: dní
C68: Náhradní tloušťka: | D68: h0 = | E68: 0.1607 | F68: mm
C70: 3.2.1. Průhyb od kvazistálého zatížení:
C72: Součinitel dotvarování pro čas vnesení zatížení: | D72: ϕc = | E72: 3.26 | F72: -
C73: Efektivní modul pružnosti pro dlouhodobě působící zatížení: | D73: Ec,ef = | E73: 7.04 | F73: GPa
C74: Pracovní součinitel (poměr Es/Ec,ef) | D74: αe,ef = | E74: 28.41 | F74: -
C76: Geometrické charakteristiky průřezu bez trhliny:
C78: Plocha ideálního průřezu: | D78: AI,ef = | E78: 0.14107 | F78: m2
C79: Vzdálenost těžiště ideálního průřezu od horního okraje: | D79: aI,ef = | E79: 0.26287 | F79: m
C80: Moment setrvačnosti ideálního průřezu k jeho těžišti: | D80: II,ef = | E80: 0.002695 | F80: m4
C81: Ohybová tuhost: | D81: Ec,ef . II,ef = | E81: 18.97 | F81: MN.m2
C82: Ohybová poddajnost: | D82: CI,ef = | E82: 0.05272 | F82: MN-1.m-2
C83: Ohybový moment při vzniku trhlin: | D83: Mcr = | E83: 31.68 | F83: kN.m
C84: Ohybový moment od kvazistálé kombinace: | D84: ME,qp = | E84: 49.5 | F84: kN.m
C86: Posouzení vzniku trhlin od zatížení: | D86: M [kN.m]: | F86: Mcr[kN.m]:
C87: Trhliny nevzniknou při kvazistálé kombinaci zatížení. | D87: 49.5 | E87: > | F87: 31.68
C88: Trhliny nevzniknou při časté kombinaci zatížení. | D88: 54 | E88: > | F88: 31.68
C89: Trhliny nevzniknou při charakteristické kombinaci zatížení. | D89: 67.5 | E89: > | F89: 31.68
C91: V PRŮŘEZU NEVZNIKAJÍ TRHLINY.
A94: str.3 | C94: Výsledná křivost od kvazistálého zatížení: | D94: (1/r)g,lt = | E94: 0.003422 | F94: m-1
C95: Průhyb od kvazisálého zatížení: | D95: wg,lt = | E95: 12.83 | F95: mm
C97: 3.2.2. Průhyb od smršťování:
C99: Součinitel dotvarování pro smršťování: | D99: ϕc,sh = | E99: 4.24 | F99: -
C100: Autogenní smršťování: | D100: εca = | E100: 2.5e-05 | F100: -
C101: Poměrné dotvarování vysycháním: | D101: εcd = | E101: 0.000582 | F101: -
C102: Celkové poměrné smršťování | D102: εcs = | E102: 0.000607 | F102: -
C103: Efektivní modul pružnosti pro dlouhodobě působící zatížení: | D103: Ec,ef,sh = | E103: 5.73 | F103: GPa
C104: Pracovní součinitel (poměr Es/Ec,ef,sh) | D104: αe,ef,sh = | E104: 34.92 | F104: -
C106: Geometrické charakteristiky průřezu bez trhliny:
C108: Plocha ideálního průřezu: | D108: AI,ef,sh = | E108: 0.147608 | F108: m2
C109: Vzdálenost těžiště ideálního průřezu od horního okraje: | D109: aI,ef,sh = | E109: 0.269477 | F109: m
C110: Moment setrvačnosti ideálního průřezu k jeho těžišti: | D110: II,ef,sh = | E110: 0.002834 | F110: m4
C111: Statický moment průřezové plochy k těžišti výztuže: | D111: SI,ef,sh = | E111: 0.000143 | F111: m3
C112: Výsledná křivost od smršťování: | D112: (1/r)cs = | E112: 0.001654 | F112: m-1
C113: Průhyb od smršťování: | D113: wcs = | E113: 7.44 | F113: mm
C115: 4. Výsledky:
C117: Průhyb od kvazisálého zatížení: | D117: wg,lt = | E117: 12.83 | F117: mm
C118: Průhyb od smršťování: | D118: wcs = | E118: 7.44 | F118: mm
C119: Celkový průhyb (wlt = wg,lt + wcs): | D119: wlt = | E119: 20.3 | F119: mm
C120: Limitní hodnota průhybu pro dlouhodobý účinek: | D120: wlim,lt,qp = | E120: 24 | F120: mm
C124: 5. Posouzení: | D124: wlt [mm] | E124: < | F124: wlim,lt [mm]
D125: 20.3 | E125: < | F125: 24
D127: PRŮHYB VYHOVUJE

Sheet List1 (hidden)
B1: C20/25 | C1: B 500B | D1: 30 | E1: 200
B3: pevnosti betonu: | C3: výztuž: | D3: modul pružnosti betonu | E3: modul pružnosti oceli | F3: rozmery nosniku: | G3: zatizeni: | H3: výztuž: | I3: RH: | J3: Cement: | K3: ψ
B4: C12/15 | C4: B 420B
B5: C16/20 | C5: B 500B | F5: 6 | G5: 5 | H5: 16 | I5: 40 | J5: N | K5: 0.6 | L5: 2
B6: C20/25 | C6: B 550B | F6: 0,45 | G6: 10 | H6: 5 | K6: 0.7 | L6: 1
B7: C25/30 | C7: B 500A | F7: 0,25 | H7: 0 | I7: DNY:
B8: C30/37 | C8: B 550A | H8: 30 | I8: 28
B9: C35/45 | I9: 7
B10: C40/50
B11: C45/55
B12: C50/60
B14: 2.2 | C14: 500 | G14: as(uzivat) | H14: =PI()*$H$5^(2)*$H$6/4 -> 1005.309649
G15: as(min) = | H15: =0.0013*$F$7*$D$23*1000000 -> 133.9
G16: as(min) = | H16: =0.26*($B$14/$C$14)*$F$7*$D$23*1000000 -> 117.832
B19: vystupni hodnoty:
B20: plocha výztuže: | C20: As1 | D20: 1005.309649 | E20: =ROUND(D20,2) -> 1005.31 | F20: mm2 | G20: = | H20: =D20/1000000 -> 0.001005309649 | I20: m2
B21: plocha betonu | C21: Ac | D21: =$F$6*$F$7 -> 0.1125 | E21: =ROUND(D21,4) -> 0.1125 | F21: m2
B22: d1 | C22: d1 | D22: =$H$8+$H$7+$H$5/2 -> 38 | E22: =ROUND(D22,4) -> 38 | F22: mm
B23: d | C23: d | D23: =$F$6-$D$22/1000 -> 0.412 | E23: =ROUND(D23,4) -> 0.412 | F23: m
C24: wlim | D24: =$F$5*1000/250 -> 24 | E24: =ROUND(D24,2) -> 24 | F24: mm
B25: kvazistálá kom. | C25: F(g+q) | D25: =$G$5+$G$6*$K$5 -> 11 | E25: =ROUND(D25,2) -> 11 | F25: kN/m
C26: Me,qp | D26: =1/8*$D$25*$F$5*$F$5 -> 49.5 | E26: =ROUND(D26,2) -> 49.5 | F26: kN.m
C27: h0 | D27: =(2*$F$6*$F$7)/(2*($F$6+$F$7)) -> 0.1607142857 | E27: =ROUND(D27,4) -> 0.1607 | F27: m
B28: souc. Dotvarovani | C28: ϕ | D28: 3.262172153 | E28: =ROUND(D28,2) -> 3.26 | F28: -
C29: Ec,ef | D29: =$D$1/(1+$D$28) -> 7.038664541 | E29: =ROUND(D29,2) -> 7.04 | F29: GPa
C30: αe,ef | D30: =$E$1/$D$29 -> 28.41448102 | E30: =ROUND(D30,2) -> 28.41 | F30: -
B32: PRŮHYB OD KVAZISTÁLÉHO ZATÍŽENÍ: A. GEOMETRICKÉ CHARAKTERISTIKY PRŮŘEZU BEZ TRHLINY
C33: AI,ef | D33: =$F$6*$F$7+($D$30)*$D$20/10^(6) -> 0.1410653519 | E33: =ROUND(D33,5) -> 0.14107 | F33: m2 | G33: plocha ideálního průřezu
C34: αI,ef | D34: =($D$21*$F$6/2+$D$30*$D$20*10^(-6)*$D$23)/$D$33 -> 0.2628669938 | E34: =ROUND(D34,5) -> 0.26287 | F34: m | G34: vzdálenost těžiště ideálního průřezu od horního okraje
C35: II,ef | D35: =$F$7*$F$6^(3)/12+$D$21*($D$34-$F$6/2)^(2)+$D$30*$D$20*10^(-6)*($D$23-$D$34)^(2) -> 0.002695064383 | E35: =ROUND(D35,6) -> 0.002695 | F35: m4 | G35: moment setrvačnosti ideálního průřezu k jeho těžišti
C36: Ec,ef.II,ef | D36: =$D$29*1000*$D$35 -> 18.96965411 | E36: =ROUND(D36,3) -> 18.97 | F36: MNm2 | G36: ohybová tuhost
C37: CI,ef | D37: =1/$D$36 -> 0.05271577406 | E37: =ROUND(D37,5) -> 0.05272 | F37: 1/(MNm2) | G37: ohybova poddajnost
C38: fctm | D38: 2.2 | F38: MPa | G38: pevnost v tahu betonu
C39: Mcr,ef | D39: =$D$38*$D$35/($F$6-$D$34) -> 0.03168410407 | F39: MNm | G39: ohybový moment při vzniku trhlin | K39: = | L39: =D39*1000 -> 31.68410407 | M39: =ROUND(L39,2) -> 31.68 | N39: kNm
B41: VYHODNOCENÍ: | I41: f | J41: M
C42: Mcr,ef | D42: =$L$39 -> 31.68410407 | E42: kNm | G42: casta | I42: =ROUND($G$5+$G$6*$K$6,3) -> 12 | J42: =ROUND(1/8*$I$42*$F$5^(2),2) -> 54
C43: Me,qp | D43: =$D$26 -> 49.5 | E43: kNm | G43: charakteristická | I43: =ROUND($G$5+$G$6,3) -> 15 | J43: =ROUND(1/8*$I$43*$F$5^(2),2) -> 67.5
D45: VZNIKNOU TRHLINY? | E45: ANO, VZNIKNOU (Mcr,ef < Me,qp)
B47: PRŮHYB OD KVAZISTÁLÉHO ZATÍŽENÍ: B. GEOMETRICKÉ CHARAKTERISTIKY PRŮŘEZU S TRHLINOU - OHYB
C48: Χcr,ef | D48: =$D$30/$F$7*$H$20*(-1+(1+(2*$F$7*$H$20*$D$23)/($D$30*$H$20^(2)))^(1/2)) -> 0.2131634986 | E48: =ROUND(D48,3) -> 0.213 | F48: m | G48: vzdálenost neutrální osy od tlačeneho okraje
C49: III,ef | D49: =1/3*F7*D48^(3)+D30*H20*(D23-D48)^(2) -> 0.001936514065 | E49: =ROUND(D49,6) -> 0.001937 | F49: m4 | G49: moment setrvačnosti
C50: Ec,ef.III,ef | D50: =D29*D49*1000 -> 13.63047288 | E50: =ROUND(D50,3) -> 13.63 | F50: MNm2 | G50: ohybova tuhost
C51: CII,ef | D51: =1/D50 -> 0.07336502621 | E51: =ROUND(D51,5) -> 0.07337 | F51: 1/(MNm2) | G51: ohybova poddajnost
C52: zéta | D52: =1-0.5*(D42/D43)^(2) -> 0.7951469338 | E52: =ROUND(D52,4) -> 0.7951 | F52: - | J52: konecná zéta: | L52: 0.7951 | M52: kvuli kvazi
C53: křivost | D53: =$D$43/1000*((1-$L$52)*$D$37+$L$52*$D$51) -> 0.003422132725 | E53: =ROUND(D53,6) -> 0.003422 | F53: 1/m | G53: křivost od zatížení
B54: průhyb | C54: fg,lt | D54: =5/48*($D$53)*$F$5^(2) -> 0.01283299772 | F54: m | G54: = | H54: =ROUND(D54*1000,2) -> 12.83 | I54: mm | K54: průhyb od zatížení
B55: pruhyb bez trhlin | D55: =5/48*$F$5^(2)*$D$43/1000*$D$37 -> 0.00978536556 | F55: m | G55: = | H55: =ROUND(D55*1000,1) -> 9.8 | I55: mm
B56: pruhyb s trhlinama | D56: =5/48*$F$5^(2)*$D$43/1000*$D$51 -> 0.01361838299 | F56: m | G56: = | H56: =ROUND(D56*1000,1) -> 13.6 | I56: mm
B57: PRŮHYB OD SMRŠŤOVÁNÍ: A. GEOMETRICKÉ CHARAKTERISTIKY PRŮŘEZU BEZ TRHLINY
B59: souc. Dotvarovani | C59: ϕc,sh | D59: 4.238317301 | E59: =ROUND(D59,2) -> 4.24 | G59: součinitel dotvarování
C60: fck | D60: 20 | F60: MPa | G60: pevnost v tlaku betonu
C61: εca | D61: =2.5*($D$60-10)*10^(-6) -> 2.5e-05 | E61: =ROUND(D61,6) -> 2.5e-05 | F61: - | G61: autogenní smršťování
C62: εcd | D62: =List2!$C$50 -> 0.0005816308883 | E62: =ROUND(D62,6) -> 0.000582 | F62: - | G62: poměrné dotvarování vysycháním
C63: εcs | D63: =$D$61+$D$62 -> 0.0006066308883 | E63: =ROUND(D63,6) -> 0.000607 | F63: -
C64: Ec,ef,sh | D64: =$D$1/(1+$D$59) -> 5.727029936 | E64: =ROUND(D64,2) -> 5.73 | F64: GPa
C65: αe,ef,sh | D65: =$E$1/$D$64 -> 34.92211534 | E65: =ROUND(D65,2) -> 34.92 | F65: -
C67: AI,ef,sh | D67: =$D$21+$D$65*$H$20 -> 0.1476075395 | E67: =ROUND(D67,6) -> 0.147608 | F67: m2 | G67: plocha idealniho průřezu
C68: αI,ef,sh | D68: =($D$21*$F$6/2+$D$65*$H$20*$D$23)/$D$67 -> 0.2694767924 | E68: =ROUND(D68,6) -> 0.269477 | F68: m2 | G68: vzdalenost težiste ideálního průřezu od horního okraje
C69: II,ef,sh | D69: =$F$7*$F$6^(3)/12+$D$21*($D$68-$F$6/2)^(2)+$D$65*$H$20*($D$23-$D$68)^(2) -> 0.00283411802 | E69: =ROUND(D69,6) -> 0.002834 | F69: m4 | G69: moment setrvačnosti ideálního průřezu k jeho těžišti
C70: SI,ef,sh | D70: =$H$20*($D$23-$D$68) -> 0.0001432799558 | E70: =ROUND(D70,6) -> 0.000143 | F70: m3 | G70: statický moment průřezové plochy k těžišti výztuže
B73: PRŮHYB OD SMRŠŤOVÁNÍ: B. GEOMETRICKÉ CHARAKTERISTIKY PRŮŘEZU S TRHLINOU
C75: Χcr,ef,sh | D75: =$D$65/$F$7*$H$20*(-1+(1+(2*$F$7*$H$20*$D$23)/($D$65*$H$20^(2)))^(1/2)) -> 0.2275848954 | E75: =ROUND(D75,4) -> 0.2276 | F75: m | G75: vzdálenost neutrální osy od tlačeneho okraje
C76: III,ef,sh | D76: =1/3*$F$7*$D$75^(3)+$D$65*$H$20*($D$23-$D$75)^(2) -> 0.002176280999 | E76: =ROUND(D76,6) -> 0.002176 | F76: m4 | G76: moment setrvačnosti
C77: SII,ef,sh | D77: =$H$20*($D$23-$D$75) -> 0.0001853942841 | E77: =ROUND(D77,6) -> 0.000185 | F77: m3 | G77: statický moment průřezové plochy k těžišti výztuže
C78: křivost | D78: =$D$63*$D$65*((1-$L$52)*$D$70/$D$69+$L$52*$D$77/$D$76) -> 0.001654371108 | E78: =ROUND(D78,6) -> 0.001654 | F78: 1/m | G78: výsledná křivost od smršťování
B79: průhyb | C79: fcs | D79: =1/8*$D$78*$F$5^(2) -> 0.007444669986 | F79: m | G79: = | H79: =ROUND(D79*1000,2) -> 7.44 | I79: mm | K79: průhyb od smršťování
B82: POSOUZENÍ PRŮHYBU:
B83: Dlouhodobý průhyb od kvazistálé kombinace zatížení (včetně smršťování)
D85: flt = fg,lt + fcs = | E85: =$D$54+$D$79 -> 0.0202776677 | F85: m | G85: POZN. flt < flim,lt | I85: =ROUND($E$85*1000,1) -> 20.3
D86: flim,lt = | E86: =$F$5/250 -> 0.024 | F86: m | I86: =ROUND(E86,4)*1000 -> 24
D88: POSOUZENÍ PRŮHYBU: | E88: VYHOVUJE
B90: VÝPOČET KŘIVOSTÍ PRO NOSNÍK BEZ VZNIKU TRHLIN:
B92: od zatížení | C92: křivost | D92: =$D$43/1000*$D$37 -> 0.002609430816
C93: průhyb | D93: =5/48*$D$92*$F$5^(2) -> 0.00978536556
B95: od smršťování | C95: křivost | D95: =$D$63*$D$65*$D$70/$D$69 -> 0.001071007642
C96: průhyb | D96: =1/8*$D$95*$F$5^(2) -> 0.00481953439
B98: celkový průhyb u nosníku bez trhlin:
C99: f | D99: =$D$93+$D$96 -> 0.01460489995 | E99: m
C100: flim | D100: =$E$86 -> 0.024 | E100: m
D102: POSOUZENÍ PRŮHYBU: | E102: VYHOVUJE

Sheet List2 (hidden)
B2: Poměrné přetvoření od dotvarovaní a smršťování dle ČSN EN 1992-1-1 | I2: ZATÍŽENÍ
B4: B.1 Základní vztahy pro stanovení součinitele dotvarování
A6: [1] | B6: ϕ (t,t0) = ϕ0 . βc(t,t0) | E6: součinitel dotvarování
B8: ϕ0 = ϕRH . β(fcm) . β(t0) | E8: základní součinitel dotvarování
B10: ϕRH = | C10: =1+((1-($C$12/100))/(0.1*($C$13)^(1/3))) -> 2.103569671 | E10: pro fcm ≤ 35 MPa | H10: součinitel, vystihující vliv relativní vlhkosti na základní součinitel dotvarování
B11: ϕRH = | C11: =(1+(1-($C$12/100))/(0.1*($C$13)^(1/3))*$C$14)*$C$15 -> 2.394660732 | E11: pro fcm > 35 MPa | R11: součinitel dotvarování | S11: ϕ (ꝏ,t0) = ϕ0 . βc(ꝏ,t0)
B12: RH = | C12: =List1!$I$5 -> 40 | D12: % | F12: relativní vlhkost okolního prostředí v % | R12: základní součinitel dotvarování | S12: ϕ0 = ϕRH . β(fcm) . β(t0)
B13: h0 = | C13: =List1!$D$27*1000 -> 160.7142857 | D13: mm | F13: náhradní rozměr prvku v mm
B14: α1 = | C14: =(35/$C$16)^(0.7) -> 1.16906056 | F14: součinitele vlivu pevnosti betonu
B15: α2 = | C15: =(35/$C$16)^(0.2) -> 1.045639553 | F15: součinitele vlivu pevnosti betonu
B16: fcm = | C16: 28 | D16: MPa | F16: průměrná hodnota pevnosti betonu v tlaku v MPa ve stáří 28 dní
B18: β(fcm) = | C18: =16.8/($C$16)^(1/2) -> 3.174901573 | F18: součinitel, vystihující vliv stáří betonu v okamžiku vnesení zatížení na
F19: základní součinitel dotvarování
B21: β (t0) = | C21: =1/(0.1+$C$61^(0.2)) -> 0.4884495454 | F21: součinitel, vystihující vliv stáří betonu v okamžiku vnesení zatížení na základní součinitel dotvarování
B22: t0 = | C22: =$C$61 -> 28 | D22: dní | F22: stáří betonu ve dnech v okamžiku vnesení zatížení
B23: t = | C23: =1000000000*356 -> 356000000000 | D23: dní | F23: stáří betonu ve dnech v uvažovaném okamžiku (nekonečno)
B25: βc(t,t0) = | C25: =(($C$23-$C$61)/($C$31+$C$23-$C$61))^(0.3) -> 0.9999999996 | F25: pro fcm ≤ 35 MPa | H25: součinitel časového průběhu dotvarování po zatížení
B26: βc(t,t0) = | C26: =(($C$23-$C$61)/($C$32+$C$23-$C$61))^(0.3) -> 0.9999999996 | F26: pro fcm > 35 MPa | H26: součinitel časového průběhu dotvarování po zatížení
B28: ϕ0 = ϕRH . β(fcm) . β(t0) = | D28: =$C$10*$C$18*$C$21 -> 3.262172154 | F28: pro fcm ≤ 35 MPa | H28: základní součinitel dotvarování
B29: ϕ0 = ϕRH . β(fcm) . β(t0) = | D29: =$C$11*$C$18*$C$21 -> 3.713590126 | F29: pro fcm > 35 MPa | H29: základní součinitel dotvarování
B31: βH = | C31: =1.5*(1+(0.012*$C$12)^18)*$C$13+250 -> 491.0718696 | D31: ≤ | E31: 1500 | G31: pro fcm ≤ 35 MPa
B32: βH = | C32: =1.5*(1+(0.012*$C$12)^18)*$C$13+250*$C$33 -> 520.5803668 | D32: ≤ | E32: =1500*$C$33 -> 1677.050983 | G32: pro fcm > 35 MPa
B33: α3 = | C33: =(35/$C$16)^(0.5) -> 1.118033989
B35: ϕ (t,t0) = ϕ0 . βc(t,t0) = | D35: =$D$28*$C$25 -> 3.262172153 | F35: pro fcm ≤ 35 MPa | H35: součinitel dotvarování
B36: ϕ (t,t0) = ϕ0 . βc(t,t0) = | D36: =$D$29*$C$26 -> 3.713590124 | F36: pro fcm > 35 MPa | H36: součinitel dotvarování
A38: [2] | B38: Vliv druhu cementu na součinitel dotvarování betonu lze uvažovat úpravou stáří betonu v okamžiku vnesení zatížení t0 ve vztahu podle následujícího vztahu:
B40: ???
B42: B.2 Základní vztahy pro stanovení poměrného přetvoření od smršťování vysycháním
B44: fcm = | C44: =$C$16 -> 28 | D44: MPa | F44: průměrná hodnota pevnosti betonu v tlaku v MPa ve stáří 28 dní
B45: fcm0 = | C45: 10 | D45: MPa
B46: αds1 = | C46: 4 | D46: - | F46: součinitel, který závisí na druhu cementu
B47: αds2 = | C47: 0.12 | D47: - | F47: součinitel, který závisí na druhu cementu
B48: βRH = | C48: =1.55*(1-($C$12/100)^(3)) -> 1.4508 | D48: -
B50: εcd,0 = | C50: =0.85*((220+110*$C$46)*EXP(-$C$47*$C$44/$C$45))*10^(-6)*$C$48 -> 0.0005816308883 | D50: =ROUND($C$50,5) -> 0.00058 | E50: - | F50: konečná hodnota poměrného smršťování vysycháním
A54: [2] | B54: Vliv druhu cementu na součinitel dotvarování betonu lze uvažovat úpravou stáří betonu v okamžiku vnesení zatížení t0 ve vztahu podle následujícího vztahu:
B56: α = | C56: 0 | D56: - | F56: mocnitel vystihující vliv druhu cementu
B57: Δt = | C57: =List1!$I$8 -> 28 | D57: dní | F57: počet dní v nichž převládá teplota T
B58: T(Δt) = | C58: 20 | D58: °C | F58: teplota kterou zadá uživatel
B59: T(Δt) = | C59: 20,04 | D59: °C | F59: teplota °C během období
B60: tT = | C60: =ROUND(EXP(-(4000/(273+$C$59)-13.65))*$C$57,3) -> 28 | D60: dní | F60: B.10 stáří betonu upravené s přihlédnutím k vlivu teploty, kterým se nagrazuje t v příslušných vztazích
B61: t0,(nový) = | C61: =$C$60*(9/(2+$C$60^(1.2))+1)^($C$56) -> 28 | D61: dní | F61: B.9 stáří betonu ve dnech v okamžiku vnesení zatížení, upravené s přihlédnutím k vlivu teploty podle vztahu (B.10)
B65: t = | C65: ꚙ | D65: dní | F65: konec zatěžování konstrukce

Sheet List5 (hidden)
B2: Poměrné přetvoření od dotvarovaní a smršťování dle ČSN EN 1992-1-1 | I2: SMRŠŤOVÁNÍ
B4: B.1 Základní vztahy pro stanovení součinitele dotvarování
A6: [1] | B6: ϕ (t,t0) = ϕ0 . βc(t,t0) | E6: součinitel dotvarování
B8: ϕ0 = ϕRH . β(fcm) . β(t0) | E8: základní součinitel dotvarování
B10: ϕRH = | C10: =1+(1-($C$12/100))/(0.1*($C$13)^(1/3)) -> 2.103569671 | E10: pro fcm ≤ 35 MPa | H10: součinitel, vystihující vliv relativní vlhkosti na základní součinitel dotvarování
B11: ϕRH = | C11: =(1+(1-($C$12/100))/(0.1*($C$13)^(1/3))*$C$14)*$C$15 -> 2.394660732 | E11: pro fcm > 35 MPa
B12: RH = | C12: =List1!$I$5 -> 40 | D12: % | F12: relativní vlhkost okolního prostředí v %
B13: h0 = | C13: =List1!$D$27*1000 -> 160.7142857 | D13: mm | F13: náhradní rozměr prvku v mm
B14: α1 = | C14: =(35/$C$16)^(0.7) -> 1.16906056 | F14: součinitele vlivu pevnosti betonu
B15: α2 = | C15: =(35/$C$16)^(0.2) -> 1.045639553 | F15: součinitele vlivu pevnosti betonu
B16: fcm = | C16: 28 | D16: MPa | F16: průměrná hodnota pevnosti betonu v tlaku v MPa ve stáří 28 dní
B18: β(fcm) = | C18: =16.8/($C$16)^(1/2) -> 3.174901573 | F18: součinitel, vystihující vliv stáří betonu v okamžiku vnesení zatížení na
F19: základní součinitel dotvarování
B21: β (t0) = | C21: =1/(0.1+$C$22^0.2) -> 0.6346091077 | F21: součinitel, vystihující vliv stáří betonu v okamžiku vnesení zatížení na základní součinitel dotvarování
B22: t0 = | C22: =$C$61 -> 7 | D22: dní | F22: stáří betonu ve dnech v okamžiku vnesení zatížení
B23: t = | C23: =List2!$C$23 -> 356000000000 | D23: dní | F23: stáří betonu ve dnech v uvažovaném okamžiku
B25: βc(t,t0) = | C25: =(($C$23-$C$22)/($C$31+$C$23-$C$22))^(0.3) -> 0.9999999996 | F25: pro fcm ≤ 35 MPa | H25: součinitel časového průběhu dotvarování po zatížení
B26: βc(t,t0) = | C26: =(($C$23-$C$22)/($C$32+$C$23-$C$22))^(0.3) -> 0.9999999996 | F26: pro fcm > 35 MPa | H26: součinitel časového průběhu dotvarování po zatížení
B28: ϕ0 = ϕRH . β(fcm) . β(t0) = | D28: =$C$10*$C$18*$C$21 -> 4.238317303 | F28: pro fcm ≤ 35 MPa | H28: základní součinitel dotvarování
B29: ϕ0 = ϕRH . β(fcm) . β(t0) = | D29: =$C$11*$C$18*$C$21 -> 4.824813818 | F29: pro fcm > 35 MPa | H29: základní součinitel dotvarování
B31: βH = | C31: =1.5*(1+(0.012*$C$12)^18)*$C$13+250 -> 491.0718696 | D31: ≤ | E31: 1500 | G31: pro fcm ≤ 35 MPa
B32: βH = | C32: =1.5*(1+(0.012*$C$12)^18)*$C$13+250*$C$33 -> 520.5803668 | D32: ≤ | E32: =1500*$C$33 -> 1677.050983 | G32: pro fcm > 35 MPa
B33: α3 = | C33: =(35/$C$16)^(0.5) -> 1.118033989
B35: ϕ (t,t0) = ϕ0 . βc(t,t0) = | D35: =$D$28*$C$25 -> 4.238317301 | F35: pro fcm ≤ 35 MPa
B36: ϕ (t,t0) = ϕ0 . βc(t,t0) = | D36: =$D$29*$C$26 -> 4.824813816 | F36: pro fcm > 35 MPa
A54: [2] | B54: Vliv druhu cementu na součinitel dotvarování betonu lze uvažovat úpravou stáří betonu v okamžiku vnesení zatížení t0 ve vztahu podle následujícího vztahu:
B56: α = | C56: =List2!C56 -> 0 | D56: - | F56: mocnitel vystihující vliv druhu cementu
B57: Δt = | C57: =List1!$I$9 -> 7 | D57: dní | F57: počet dní v nichž převládá teplota T
B58: T(Δt) = | C58: =List2!C58 -> 20 | D58: °C | F58: teplota kterou zadá uživatel
B59: T(Δt) = | C59: =List2!C59 -> 20,04 | D59: °C | F59: teplota °C během období
B60: tT = | C60: =ROUND(EXP(-(4000/(273+$C$59)-13.65))*$C$57,3) -> 7 | D60: dní | F60: B.10 stáří betonu upravené s přihlédnutím k vlivu teploty, kterým se nagrazuje t v příslušných vztazích
B61: t0,(nový) = | C61: =$C$60*(9/(2+$C$60^(1.2))+1)^($C$56) -> 7 | D61: dní | F61: B.9 stáří betonu ve dnech v okamžiku vnesení zatížení, upravené s přihlédnutím k vlivu teploty podle vztahu (B.10)

Sheet List4 (hidden)
B2: Třídy a mechanické vlastnosti betonu | H2: Doporučené hodnoty součinitele ψ2 pro pozemní stavby:
C4: fck,cyl | D4: fck,cube | E4: fcm | F4: fctm | M4: ψ2 | N4: ψ1 | O4: ψ0
B5: C12/15 | C5: 12 | D5: 15 | E5: 20 | F5: 1.6 | H5: Kategorie A: obytné plochy, ψ1 = 0,5, ψ2 = 0,3 | M5: 0.3 | N5: 0.5 | O5: 0.7 | P5: Kategorie A: obytné plochy
B6: C16/20 | C6: 16 | D6: 20 | E6: 24 | F6: 1.9 | H6: Kategorie B: kancelářské plochy, ψ1 = 0,5, ψ2 = 0,3 | M6: 0.3 | N6: 0.5 | O6: 0.7 | P6: Kategorie B: kancelářské plochy
B7: C20/25 | C7: 20 | D7: 25 | E7: 28 | F7: 2.2 | H7: Kategorie C: schromažďovací plochy, ψ1 = 0,7, ψ2 = 0,6 | M7: 0.6 | N7: 0.7 | O7: 0.7 | P7: Kategorie C: schromažďovací plochy
B8: C25/30 | C8: 25 | D8: 30 | E8: 33 | F8: 2.6 | H8: Kategorie D: obchodní plochy, ψ1 = 0,7, ψ2 = 0,6 | M8: 0.6 | N8: 0.7 | O8: 0.7 | P8: Kategorie D: obchodní plochy
B9: C30/37 | C9: 30 | D9: 37 | E9: 38 | F9: 2.9 | H9: Kategorie E: skladovací plochy, ψ1 = 0,9, ψ2 = 0,8 | M9: 0.8 | N9: 0.9 | O9: 1 | P9: Kategorie E: skladovací plochy
B10: C35/45 | C10: 35 | D10: 45 | E10: 43 | F10: 3.2 | H10: Kategorie F: dopravní plochy, ψ1 = 0,7, ψ2 = 0,6 | M10: 0.6 | N10: 0.7 | O10: 0.7 | P10: Kategorie F: dopravní plochy
B11: C40/50 | C11: 40 | D11: 50 | E11: 48 | F11: 3.5 | H11: Kategorie G: dopravní plochy, ψ1 = 0,5, ψ2 = 0,3 | M11: 0.3 | N11: 0.5 | O11: 0.7 | P11: Kategorie G: dopravní plochy
B12: C45/55 | C12: 45 | D12: 55 | E12: 53 | F12: 3.8 | H12: Kategorie H: střechy, ψ1 = 0, ψ2 = 0 | M12: 0 | N12: 0 | O12: 0 | P12: Kategorie H: střechy
B13: C50/60 | C13: 50 | D13: 60 | E13: 58 | F13: 4.1
H14: Kategorie D: obchodní plochy, ψ1 = 0,7, ψ2 = 0,6
B15: Betonářské oceli dle ČSN EN 1992-1-1
C17: fyk
B18: B 420B | C18: 400
B19: B 500B | C19: 500
B20: B 550B | C20: 550
B21: B 500A | C21: 500
B22: B 550A | C22: 550
B25: Třídy cementu
C26: αds1 | D26: αds2 | E26: α
B27: S | C27: 3 | D27: 0.13 | E27: 1
B28: N | C28: 4 | D28: 0.12 | E28: 0
B29: R | C29: 6 | D29: 0.11 | E29: -1
B31: Kontrola vstupu | G31: 0
B32: modul pruznosti betonu | E32: 0
B33: modul pruznosti oceli | E33: 0
B34: delka nosniku | E34: 0
B35: vyska nosniku | E35: 0
B36: sirka nosniku | E36: 0
B37: g | E37: 0
B38: q | E38: 0
B39: prumer vyztuze | E39: 0
B40: počet vyztuze | E40: 0
B41: trminky | E41: 0
B42: kryti | E42: 0
B43: RH mensi nez 0 | E43: 0
B44: t0 | E44: 0
B45: t0,sh | E45: 0
B46: cement | E46: 0
B47: teplota mensi nez 0 | E47: 0
B48: teplota vetsi nez 80 | E48: 0
B49: RH vetsi nez 100 | E49: 0
